bitfinex/quotes_SOLUSD_20250317
["timestamp","ask_amount","ask_price","bid_price","bid_amount"]
[1742214510837,20.0,128.7,128.69,0.063]
[1742214511860,7.7684,128.73,128.69,0.063]
[1742214512058,20.0,128.71,128.69,0.063]
[1742214514063,7.77,128.7,128.69,0.063]
[1742214518072,8.05432314,128.7,128.69,0.0001]
[1742214518867,8.05432314,128.7,128.66,0.063]
[1742214518868,20.0,128.67,128.66,0.063]
[1742214519167,27.12,128.67,128.66,0.063]
[1742214520051,34.8918,128.67,128.66,0.063]
[1742214520260,7.12,128.7,128.66,0.063]
[1742214520576,20.0,128.67,128.66,0.063]
[1742214521082,7.12,128.7,128.66,0.063]
[1742214522563,0.14216157,128.73,128.66,18.71264886]
[1742214522743,0.14216157,128.73,128.66,25.83264886]
[1742214522744,20.0,128.71,128.66,25.83264886]
[1742214524878,20.0,128.71,128.66,345.60464886]
[1742214525263,27.7695,128.71,128.66,337.83264886]
[1742214525562,27.7695,128.71,128.66,7.183]
[1742214525759,27.7695,128.71,128.66,0.063]
[1742214526570,20.0,128.69,128.66,18.71264886]
[1742214527064,27.7694,128.71,128.66,26.48494886]
[1742214527366,20.0,128.71,128.66,26.48494886]
[1742214527744,27.7695,128.71,128.66,26.48494886]
[1742214528548,27.7695,128.71,128.66,338.48494886]
[1742214530447,27.7695,128.71,128.66,330.71264886]
[1742214531749,27.7695,128.71,128.66,338.48504886]
[1742214532169,20.0,128.71,128.66,338.48504886]
[1742214532745,7.7984,128.73,128.66,338.48504886]
[1742214532746,20.03,128.73,128.67,0.14216157]
[1742214532945,0.03,128.73,128.68,18.64964886]
[1742214533561,0.03,128.73,128.69,0.14216157]
[1742214533767,0.03,128.73,128.69,80.95812314]
[1742214534785,0.03,128.73,128.71,18.64964886]
[1742214534947,0.03,128.73,128.69,80.6738]
[1742214535765,0.03,128.73,128.69,392.6738]
[1742214535964,0.03,128.73,128.69,80.6738]
[1742214537360,0.03,128.73,128.69,88.4443]
[1742214537874,0.03,128.73,128.69,80.6738]
[1742214538276,0.03,128.73,128.69,88.4443]
[1742214538981,0.03,128.73,128.69,400.4443]
[1742214540363,0.03,128.73,128.69,80.6738]
[1742214541283,0.03,128.73,128.69,88.4442]
[1742214543481,0.03,128.73,128.69,400.4442]
[1742214544383,0.03,128.73,128.7,18.79181043]
[1742214545288,0.03,128.73,128.72,18.64964886]
[1742214546784,0.03,128.73,128.72,26.41844886]
[1742214547670,0.03,128.73,128.72,338.41844886]
[1742214550066,0.03,128.73,128.72,419.376572]
[1742214551887,0.03,128.76,128.72,419.51873357]
[1742214552077,0.03,128.76,128.75,18.79181043]
[1742214552272,0.03,128.76,128.75,106.58561043]
[1742214553089,0.03,128.76,128.75,87.7938]
[1742214553967,0.03,128.76,128.75,7.12]
[1742214555500,0.03,128.76,128.74,337.74964886]
[1742214556899,0.03,128.76,128.74,25.74964886]
[1742214557489,0.03,128.76,128.73,80.6738]
[1742214560094,20.0,128.75,128.7,18.64964886]
[1742214561196,7.7675,128.74,128.7,18.64964886]
[1742214562585,7.7675,128.74,128.72,0.063]
[1742214563277,19.4462,128.76,128.72,0.063]
[1742214563678,0.03,128.76,128.73,25.74964886]
[1742214563986,0.03,128.76,128.73,106.42344886]
[1742214565290,0.03,128.76,128.73,114.19144886]
[1742214565879,0.03,128.76,128.74,0.28432314]
[1742214566590,0.03,128.76,128.74,312.28432314]
[1742214567294,0.03,128.76,128.75,7.7669]
[1742214567480,0.03,128.76,128.74,18.64964886]
[1742214568501,0.03,128.76,128.74,26.41704886]
[1742214570378,0.03,128.76,128.74,338.41704886]
[1742214570783,0.03,128.76,128.74,319.7674]
[1742214570997,0.03,128.76,128.73,33.51754886]
[1742214571900,0.03,128.76,128.73,18.64964886]
[1742214572103,0.03,128.76,128.72,7.163]
[1742214572681,0.03,128.76,128.72,14.9316]
[1742214573590,0.03,128.76,128.72,7.8316]
[1742214573886,0.03,128.76,128.72,326.9316]
[1742214574610,0.03,128.76,128.72,14.9316]
[1742214577741,0.03,128.76,128.72,326.9316]
[1742214580030,0.03,128.76,128.72,7.163]
[1742214582111,0.03,128.76,128.72,0.063]
[1742214586296,0.31432314,128.76,128.72,0.063]
[1742214587216,20.0,128.73,128.72,0.063]
[1742214587997,7.93876157,128.76,128.72,0.063]
[1742214588198,20.0,128.73,128.72,0.063]
[1742214589427,27.7681,128.73,128.72,0.063]
[1742214589996,27.91026157,128.73,128.72,0.063]
[1742214590205,20.0,128.7,128.69,0.063]
[1742214591628,27.77,128.7,128.69,0.063]
[1742214592011,20.0,128.7,128.69,0.063]
[1742214592329,0.42648471,128.69,128.66,0.063]
[1742214592536,0.14216157,128.67,128.6,0.063]
[1742214592819,0.14216157,128.64,128.6,0.063]
[1742214593031,20.0,128.65,128.6,0.063]
[1742214593240,0.14216157,128.64,128.6,0.063]
[1742214593413,7.24216157,128.64,128.6,0.063]
[1742214593598,15.01606157,128.64,128.6,0.063]
[1742214594411,20.0,128.61,128.6,0.063]
[1742214597019,27.91756157,128.61,128.6,0.063]
[1742214597603,20.14216157,128.61,128.6,0.063]
[1742214597804,0.14216157,128.61,128.6,0.063]
[1742214598101,7.91756157,128.61,128.6,0.063]
[1742214598299,27.91756157,128.61,128.6,0.063]
[1742214599903,20.0,128.64,128.6,0.063]
[1742214600524,20.0,128.63,128.6,0.063]
[1742214600922,7.1,128.66,128.6,0.063]
[1742214601105,38.51064641,128.72,128.61,0.14216157]
[1742214601312,20.0,128.68,128.6,18.71264886]
[1742214601513,0.14216157,128.67,128.6,18.71264886]
[1742214601818,11.98764641,128.72,128.64,18.79181043]
[1742214602002,11.98764641,128.72,128.68,0.14216157]
[1742214602210,11.98764641,128.72,128.7,18.64964886]
[1742214602441,7.24216157,128.71,128.61,7.1]
[1742214602740,7.24216157,128.71,128.59,0.53]
[1742214602741,0.14216157,128.67,128.59,0.03]
[1742214602937,0.14216157,128.62,128.59,0.03]
[1742214603136,20.0,128.65,128.59,0.03]
[1742214603731,20.0,128.65,128.6,312.063]
[1742214603906,20.0,128.63,128.6,0.063]
[1742214604108,0.14216157,128.64,128.6,0.063]
[1742214604109,0.14216157,128.61,128.6,0.063]
[1742214604503,0.42648471,128.61,128.6,0.063]
[1742214604705,0.28432314,128.61,128.6,0.063]
[1742214604929,20.0,128.58,128.56,0.063]
[1742214605120,20.0,128.57,128.56,0.063]
[1742214605323,0.14216157,128.57,128.56,0.0001]
[1742214605528,9.0610285,128.73,128.6,38.64964886]
[1742214605820,0.5,128.66,128.59,20.0]
[1742214606024,0.28432314,128.66,128.59,20.0]
[1742214606209,0.14216157,128.66,128.59,20.0]
[1742214606413,7.7688,128.72,128.63,0.14216157]
[1742214606610,30.27919309,128.73,128.64,1.55405169]
[1742214606611,28.98636459,128.73,128.64,1.55405169]
[1742214606914,0.5,128.74,128.67,18.64964886]
[1742214607104,7.7669,128.75,128.67,18.64964886]
[1742214607309,7.26,128.74,128.64,18.64964886]
[1742214607510,0.28432314,128.73,128.64,18.64964886]
[1742214607915,0.28432314,128.73,128.61,26.42484886]
[1742214608111,0.53,128.76,128.64,0.14216157]
[1742214608312,0.53,128.76,128.6,7.28]
[1742214608313,0.28432314,128.74,128.59,205.7]
[1742214608514,0.28432314,128.74,128.56,8.62053572]
[1742214608515,0.64216157,128.69,128.56,0.0001]
[1742214608745,0.28432314,128.67,128.56,0.0001]
[1742214609038,0.28432314,128.67,128.57,0.14216157]
[1742214609243,0.14216157,128.67,128.6,18.64964886]
[1742214609541,20.0,128.68,128.6,18.64964886]
[1742214609710,0.14216157,128.67,128.6,18.71264886]
[1742214610213,7.34,128.7,128.63,20.0]
[1742214610419,0.03,128.73,128.65,0.14216157]
[1742214610622,0.17216157,128.73,128.65,18.79181043]
[1742214610829,0.03,128.73,128.66,0.14216157]
[1742214611006,0.03,128.73,128.65,18.79181043]
[1742214611203,0.03,128.73,128.65,18.64964886]
[1742214611516,0.28432314,128.71,128.64,7.36]
[1742214611724,20.0,128.67,128.6,0.063]
[1742214612322,0.28432314,128.65,128.6,0.063]
[1742214612526,7.38,128.66,128.6,0.063]
[1742214612819,0.14216157,128.65,128.6,0.063]
[1742214613158,20.0,128.63,128.6,0.063]
[1742214613328,7.38,128.66,128.6,0.063]
[1742214613329,20.0,128.66,128.6,0.063]
[1742214614432,0.14216157,128.65,128.6,0.063]
[1742214614635,7.54216157,128.65,128.6,0.063]
[1742214614850,20.0,128.66,128.6,0.063]
[1742214615016,0.14216157,128.65,128.6,0.063]
[1742214615212,35.63998471,128.65,128.6,0.063]
[1742214615431,0.5,128.64,128.6,0.063]
[1742214615634,3.83764412,128.72,128.6,0.063]
[1742214615936,11.93191866,128.75,128.66,20.0]
[1742214616117,71.591512,128.85,128.7,20.0]
[1742214616326,119.87646414,128.92,128.73,0.5]
[1742214616533,150.18353321,128.95,128.79,0.5]
[1742214616843,279.42134904,129.09,128.95,12.09729303]
[1742214616844,6.38988313,129.08,128.95,12.09729303]
[1742214617139,126.25241169,129.24,129.11,7.7453]
[1742214617349,87.38345729,129.24,129.17,0.5]
[1742214617548,63.22528325,129.29,129.26,0.5]
[1742214617832,287.70351393,129.41,129.36,0.5]
[1742214618051,50.0,129.44,129.43,0.5]
[1742214618223,319.39640676,129.58,129.37,18.76]
[1742214618224,311.67880676,129.58,129.53,0.5]
[1742214618421,311.67880676,129.58,129.44,0.5]
[1742214618651,541.33409959,129.74,129.6,0.5]
[1742214618652,7.7083,129.73,129.6,0.5]
[1742214618854,7.708,129.74,129.5,0.5]
[1742214619069,7.708,129.74,129.69,0.5]
[1742214619221,201.67293812,129.89,129.72,0.5]
[1742214619556,173.48734602,129.88,129.71,38.89737503]
[1742214619721,342.8,130.15,129.81,0.5]
[1742214619722,38.62402571,130.0,129.81,0.5]
[1742214619921,38.67390433,129.96,129.8,38.35022937]
[1742214620161,50.0,129.96,129.89,0.5]
[1742214620457,7.689,130.06,129.91,38.01277621]
[1742214620638,7.6889,130.06,129.91,38.01277621]
[1742214620841,7.6769,130.26,130.03,38.79079236]
[1742214621025,7.17509949,130.25,130.08,0.5]
[1742214621226,7.17509949,130.25,129.96,38.92548595]
[1742214621227,72.68784874,130.24,129.96,38.92548595]
[1742214621447,205.42,130.23,129.9,8.1979]
[1742214621750,38.82283693,130.22,129.98,0.14216157]
[1742214621933,38.82283693,130.22,129.81,0.5]
[1742214621934,38.82283693,130.22,129.87,50.0]
[1742214622244,205.42,130.23,129.88,1.407893]
[1742214622435,210.3418862,130.23,129.92,0.5]
[1742214622631,12.25161327,130.22,129.88,1.907893]
[1742214622830,4.9218862,130.23,129.88,1.407893]
[1742214623045,50.0,130.0,129.88,1.907893]
[1742214623252,0.14216157,129.95,129.93,24.04719697]
[1742214623643,0.14216157,129.93,129.79,18.82701614]
[1742214623946,8.54969166,129.92,129.81,50.0]
[1742214624124,8.54969166,129.92,129.61,38.93753083]
[1742214624330,8.54969166,129.92,129.62,1.41071704]
[1742214624531,204.8,129.95,129.63,0.5]
[1742214624731,210.10499958,129.95,129.62,1.41071704]
[1742214624935,13.47699283,129.94,129.52,149.47180174]
[1742214625246,38.78935289,129.91,129.66,50.0]
[1742214625462,38.37745074,129.89,129.57,50.0]
[1742214625749,0.14216157,129.86,129.49,8.64597363]
[1742214625941,38.39797471,129.83,129.49,8.64597363]
[1742214626143,0.14216157,129.81,129.39,67.5338708]
[1742214626446,38.12201857,129.95,129.76,37.70929642]
[1742214626447,204.5,129.92,129.76,37.70929642]
[1742214626648,0.14216157,129.79,129.67,275.50836875]
[1742214626839,0.14216157,129.77,129.59,38.90930668]
[1742214627049,0.14216157,129.75,129.59,38.90930668]
[1742214627229,7.7029,129.82,129.6,0.14216157]
[1742214627532,0.5,129.79,129.59,38.90930668]
[1742214627732,0.5,129.75,129.59,38.90930668]
[1742214627944,65.4756,129.82,129.61,38.5121056]
[1742214628265,0.14216157,129.75,129.58,251.51492224]
[1742214628432,0.14216157,129.73,129.58,251.51492224]
[1742214628634,2.01724968,129.73,129.72,48.14763525]
[1742214628829,1.37508811,129.73,129.72,3.525e-05]
[1742214629029,0.14216157,129.79,129.72,3.525e-05]
[1742214629232,0.14216157,129.76,129.72,3.525e-05]
[1742214629451,7.7059,129.77,129.72,3.525e-05]
[1742214629629,7.7006,129.86,129.72,3.525e-05]
[1742214630030,0.5,129.85,129.72,3.525e-05]
[1742214630349,50.0,129.93,129.72,3.525e-05]
[1742214630551,7.697,129.92,129.72,3.525e-05]
[1742214630740,7.697,129.92,129.73,38.32364526]
[1742214630941,0.5,129.9,129.7,38.52652156]
[1742214631134,26.9582,129.83,129.7,0.14216157]
[1742214631329,20.5,129.79,129.66,252.89214414]
[1742214631530,0.5,129.7,129.66,252.89214414]
[1742214631735,204.2,129.76,129.66,214.15953966]
[1742214631935,0.14216157,129.71,129.66,214.15953966]
[1742214632247,20.0,129.67,129.66,214.15953966]
[1742214632463,0.14216157,129.82,129.71,0.5]
[1742214632632,204.2,129.81,129.68,0.5]
[1742214632944,204.2,129.81,129.57,0.5]
[1742214632945,204.2,129.86,129.59,38.90930668]
[1742214633138,20.0,129.8,129.58,38.95825785]
[1742214633450,204.2,129.79,129.61,0.5]
[1742214633647,204.2,129.79,129.65,0.5]
[1742214633947,204.2,129.79,129.58,0.14216157]
[1742214634152,204.2,129.79,129.56,39.00866535]
[1742214634342,204.2,129.79,129.59,0.5]
[1742214634648,20.0,129.76,129.55,0.5]
[1742214634850,0.14216157,129.75,129.55,0.5]
[1742214635035,0.14216157,129.75,129.57,0.5]
[1742214635237,0.14216157,129.73,129.62,0.5]
[1742214635468,21.5815,129.74,129.6,0.5]
[1742214635950,20.0,129.71,129.58,0.5]
[1742214636169,204.28216157,129.7,129.58,0.5]
[1742214636453,204.28216157,129.7,129.58,312.0]
[1742214636649,0.14216157,129.66,129.58,312.0]
[1742214637033,197.42659551,129.7,129.54,0.5]
[1742214637235,21.5898,129.69,129.54,0.5]
[1742214637431,21.5898,129.69,129.52,0.5]
[1742214637656,18.933972,129.68,129.51,0.5]
[1742214637844,18.933972,129.68,129.48,0.5]
[1742214638048,18.933972,129.68,129.51,0.5]
[1742214638352,18.933972,129.68,129.47,18.64964886]
[1742214638557,18.933972,129.68,129.49,18.64964886]
[1742214638744,18.933972,129.68,129.45,0.5]
[1742214638938,18.933972,129.68,129.43,0.5]
[1742214639140,18.933972,129.68,129.42,38.26000825]
[1742214639141,21.6065,129.59,129.4,0.5]
[1742214639341,0.42648471,129.51,129.4,0.5]
[1742214639548,0.42648471,129.51,129.34,23.228846]
[1742214639549,0.28432314,129.46,129.37,0.5]
[1742214639734,0.42648471,129.46,129.37,0.5]
[1742214639935,18.64964886,129.45,129.34,23.228846]
[1742214640136,0.42648471,129.41,129.35,312.0]
[1742214640337,20.0,129.37,129.35,312.0]
[1742214640536,0.28432314,129.36,129.35,312.0]
[1742214640737,204.2,129.4,129.35,312.0]
[1742214641034,20.0,129.37,129.36,0.5]
[1742214641343,204.2,129.4,129.36,19.14964886]
[1742214641539,20.0,129.38,129.37,19.14964886]
[1742214641741,204.2,129.47,129.39,19.14964886]
[1742214641946,0.28432314,129.46,129.41,0.5]
[1742214642146,0.42648471,129.43,129.35,0.5]
[1742214642348,0.42648471,129.43,129.35,19.14964886]
[1742214642661,121.21932576,129.47,129.42,19.14964886]
[1742214643044,212.0002,129.53,129.47,0.5]
[1742214643259,3.0876,129.55,129.48,19.14964886]
[1742214643561,0.14216157,129.51,129.47,18.64964886]
[1742214643859,0.14216157,129.51,129.49,0.5]
[1742214644073,0.14216157,129.51,129.48,312.0]
[1742214644250,20.0,129.52,129.48,312.0]
[1742214644453,0.28432314,129.51,129.44,0.5]
[1742214644652,0.42648471,129.51,129.42,0.5]
[1742214644859,0.42648471,129.51,129.44,0.5]
[1742214645064,0.42648471,129.51,129.45,0.5]
[1742214645370,0.42648471,129.51,129.41,19.14964886]
[1742214645371,20.0,129.47,129.41,19.14964886]
[1742214645553,20.0,129.47,129.44,0.5]
[1742214645757,20.0,129.47,129.45,0.5]
[1742214645953,20.0,129.47,129.43,18.64964886]
[1742214645954,3.0888,129.5,129.43,19.14964886]
[1742214646265,3.0888,129.5,129.43,0.5]
[1742214646473,3.0888,129.5,129.42,18.64964886]
[1742214646656,20.0,129.47,129.42,18.64964886]
[1742214647057,20.0,129.47,129.43,0.5]
[1742214647365,20.0,129.47,129.36,1.41355243]
[1742214647366,3.0885,129.51,129.47,0.5]
[1742214647551,10.8099,129.51,129.47,0.5]
[1742214647751,10.8099,129.51,129.48,0.5]
[1742214648060,20.0,129.48,129.44,0.5]
[1742214648262,20.0,129.48,129.42,18.64964886]
[1742214648263,0.14216157,129.47,129.42,18.64964886]
[1742214648472,0.42648471,129.47,129.37,0.5]
[1742214648649,0.42648471,129.47,129.35,0.5]
[1742214649059,0.42648471,129.47,129.39,0.5]
[1742214649264,0.42648471,129.47,129.36,18.64964886]
[1742214649573,20.0,129.43,129.36,18.64964886]
[1742214649775,0.14216157,129.42,129.36,0.5]
[1742214649976,0.42648471,129.42,129.34,0.5]
[1742214650769,0.42648471,129.42,129.32,18.71264886]
[1742214650770,20.42648471,129.42,129.32,0.063]
[1742214651146,0.14216157,129.42,129.34,0.5]
[1742214651364,20.0,129.38,129.35,0.5]
[1742214651548,20.0,129.37,129.33,18.64964886]
[1742214651870,20.0,129.37,129.32,0.063]
[1742214652167,0.14216157,129.36,129.32,0.063]
[1742214652551,20.0,129.37,129.32,0.563]
[1742214652751,0.42648471,129.36,129.32,0.0001]
[1742214652952,0.42648471,129.36,129.24,0.5]
[1742214653163,0.42648471,129.36,129.26,18.64964886]
[1742214653372,10.8232,129.35,129.29,18.64964886]
[1742214653669,10.8232,129.35,129.32,19.14964886]
[1742214653843,3.0923,129.35,129.23,312.0]
[1742214654047,10.8232,129.35,129.25,0.28432314]
[1742214654247,10.8232,129.35,129.25,0.14216157]
[1742214654454,10.8232,129.35,129.15,18.655477]
[1742214654455,20.0,129.32,129.23,0.14216157]
[1742214654657,0.14216157,129.31,129.19,0.14216157]
[1742214654949,0.14216157,129.31,129.13,0.28432314]
[1742214654950,0.42648471,129.31,129.13,0.28432314]
[1742214655164,0.42648471,129.31,129.12,232.81547688]
[1742214655358,20.0,129.27,129.16,0.14216157]
[1742214655762,20.0,129.27,129.16,0.28432314]
[1742214656165,20.0,129.27,129.19,18.79181043]
[1742214656365,26.2953,129.3,129.19,18.79181043]
[1742214656670,10.8274,129.3,129.23,0.14216157]
[1742214656859,10.8274,129.3,129.23,18.79181043]
[1742214657456,3.0933,129.31,129.24,0.14216157]
[1742214657651,3.0933,129.31,129.27,20.14216157]
[1742214657851,3.0933,129.31,129.28,18.64964886]
[1742214658173,10.8219,129.37,129.29,0.28432314]
[1742214658570,10.8219,129.37,129.32,18.79181043]
[1742214658750,3.0919,129.37,129.32,0.28432314]
[1742214659168,10.8216,129.37,129.31,18.64964886]
[1742214659369,10.8216,129.37,129.3,1.41420837]
[1742214659370,0.14216157,129.33,129.3,8.37e-06]
[1742214659575,20.14216157,129.33,129.3,8.37e-06]
[1742214659863,20.14216157,129.33,129.16,20.14216157]
[1742214660064,0.14216157,129.3,129.19,312.0]
[1742214660294,0.28432314,129.3,129.19,312.0]
[1742214660466,0.14216157,129.3,129.18,0.14216157]
[1742214660772,0.28432314,129.3,129.17,0.28432314]
[1742214660956,0.14216157,129.3,129.17,0.28432314]
[1742214661152,0.42648471,129.3,129.17,0.14216157]
[1742214661369,10.8283,129.29,129.14,0.28432314]
[1742214661574,20.0,129.26,129.14,0.28432314]
[1742214661782,20.0,129.24,129.14,0.28432314]
[1742214662158,20.0,129.24,129.14,0.14216157]
[1742214662564,0.42648471,129.23,129.08,0.14216157]
[1742214662765,0.42648471,129.23,129.07,27.12947759]
[1742214662975,20.0,129.24,129.13,0.14216157]
[1742214663177,0.14216157,129.23,129.13,0.14216157]
[1742214663381,26.3095,129.23,129.13,0.28432314]
[1742214663680,0.42648471,129.19,129.11,0.547521]
[1742214663877,20.0,129.15,129.11,2.1e-05]
[1742214664379,0.28432314,129.14,129.11,2.1e-05]
[1742214664566,0.42648471,129.14,129.06,2.1e-05]
[1742214664772,0.42648471,129.14,129.05,2.1e-05]
[1742214665372,10.8417,129.13,129.05,2.1e-05]
[1742214665573,20.0,129.1,129.05,2.1e-05]
[1742214666180,26.3299,129.13,129.05,18.933993]
[1742214666360,20.0,129.1,129.05,0.14218257]
[1742214666764,10.8417,129.13,129.07,19.07613357]
[1742214666978,10.8417,129.13,129.07,0.28432314]
[1742214666979,26.3299,129.13,129.07,0.28432314]
[1742214667177,3.0976,129.13,129.07,0.28432314]
[1742214667581,7.7428,129.16,129.07,0.28432314]
[1742214667805,20.0,129.13,129.05,2.1e-05]
[1742214667976,0.28432314,129.12,129.05,2.1e-05]
[1742214668476,0.42648471,129.12,129.05,2.1e-05]
[1742214669267,0.28432314,129.12,129.05,2.1e-05]
[1742214669466,20.0,129.08,129.05,2.1e-05]
[1742214669915,10.8434,129.11,129.05,39.07615457]
[1742214670184,3.0981,129.11,129.06,0.14216157]
[1742214670386,10.8434,129.11,129.06,0.14216157]
[1742214670885,10.8434,129.11,129.05,18.933993]
[1742214671086,0.28432314,129.16,129.05,2.1e-05]
[1742214671390,0.42648471,129.14,129.05,2.1e-05]
[1742214671683,20.0,129.15,129.05,2.1e-05]
[1742214671885,204.64,129.18,129.05,19.07615457]
[1742214672187,10.8383,129.17,129.08,20.14216157]
[1742214672483,8.1288,129.17,129.09,19.07613357]
[1742214672987,8.1288,129.17,129.1,0.14216157]
[1742214673370,2.3225,129.17,129.11,18.933972]
[1742214673569,20.0,129.18,129.11,18.79181043]
[1742214673879,20.0,129.18,129.09,0.14216157]
[1742214674794,20.0,129.18,129.08,0.42648471]
[1742214674997,11.6091,129.21,129.11,19.07613357]
[1742214675171,20.0,129.18,129.11,0.42648471]
[1742214675573,8.1288,129.17,129.11,0.42648471]
[1742214675771,8.125,129.23,129.14,0.42648471]
[1742214676086,19.7322,129.23,129.15,18.64964886]
[1742214676292,8.125,129.23,129.16,0.42648471]
[1742214676473,8.125,129.23,129.16,0.14216157]
[1742214676674,8.125,129.23,129.15,0.14216157]
[1742214676869,20.0,129.2,129.13,0.14216157]
[1742214677090,20.0,129.2,129.14,0.14216157]
[1742214677276,20.0,129.2,129.12,0.28432314]
[1742214677577,5.8036,129.23,129.16,0.14216157]
[1742214677784,5.8036,129.23,129.15,18.933972]
[1742214678296,20.0,129.2,129.12,0.14216157]
[1742214678895,20.0,129.2,129.08,0.14216157]
[1742214679071,20.0,129.2,129.08,0.28432314]
[1742214679278,20.0,129.2,129.11,0.28432314]
[1742214679580,19.7383,129.19,129.11,0.28432314]
[1742214679990,2.3221,129.19,129.13,0.14216157]
[1742214680322,8.1275,129.19,129.16,0.14216157]
[1742214680481,8.1275,129.19,129.13,0.42648471]
[1742214680789,8.1275,129.19,129.15,0.28432314]
[1742214680988,2.3221,129.19,129.15,0.42648471]
[1742214681181,2.3212,129.24,129.18,19.07613357]
[1742214681386,0.14216157,129.23,129.1,0.14216157]
[1742214681587,0.14216157,129.23,129.14,18.933972]
[1742214681890,0.14216157,129.2,129.14,18.64964886]
[1742214682076,0.42648471,129.2,129.08,0.063]
[1742214682391,0.28432314,129.2,129.08,0.063]
[1742214682801,0.42648471,129.2,129.08,0.063]
[1742214683298,19.07613357,129.2,129.08,0.063]
[1742214683602,0.28432314,129.18,129.08,0.063]
[1742214683779,8.1288,129.17,129.08,0.063]
[1742214683975,8.1288,129.17,129.08,0.20516157]
[1742214683976,204.82,129.16,129.08,0.20516157]
[1742214684304,204.82,129.16,129.1,0.28432314]
[1742214684779,204.82,129.16,129.13,0.28432314]
[1742214684984,2.3214,129.23,129.15,20.0]
[1742214685179,2.3214,129.23,129.17,0.14216157]
[1742214685394,8.125,129.23,129.17,0.14216157]
[1742214685592,19.7322,129.23,129.13,18.933972]
[1742214685788,20.0,129.2,129.14,0.14216157]
[1742214685991,20.0,129.16,129.14,0.14216157]
[1742214686298,204.84,129.19,129.14,19.07613357]
[1742214686493,204.84,129.19,129.14,331.07613357]
[1742214687403,203.1734,129.19,129.18,19.07613357]
[1742214687724,203.1734,129.19,129.18,0.42648471]
[1742214687901,205.4955,129.19,129.18,19.07613357]
[1742214688101,205.4955,129.19,129.18,0.14216157]
[1742214688412,211.3009,129.19,129.14,0.28432314]
[1742214688720,211.3009,129.19,129.14,0.14216157]
[1742214688919,211.3009,129.19,129.14,0.28432314]
[1742214689125,211.3009,129.19,129.14,0.14216157]
[1742214689417,211.3009,129.19,129.13,18.933972]
[1742214689621,211.3009,129.19,129.13,19.07613357]
[1742214689805,205.4955,129.19,129.17,19.07613357]
[1742214690010,203.1734,129.19,129.18,0.42648471]
[1742214690207,205.4955,129.19,129.18,0.42648471]
[1742214690621,205.4955,129.19,129.18,0.28432314]
[1742214690817,205.4955,129.19,129.14,18.3464048]
[1742214691123,205.4955,129.19,129.16,0.28432314]
[1742214691519,205.4956,129.19,129.16,0.28432314]
[1742214692121,205.5256,129.19,129.16,0.28432314]
[1742214692323,211.331,129.19,129.16,0.28432314]
[1742214692836,211.331,129.19,129.16,0.14216157]
[1742214693010,20.0,129.16,129.14,9.02687718]
[1742214693211,20.0,129.16,129.14,7.718e-05]
[1742214693512,0.2328472,129.14,129.08,0.063]
[1742214693909,20.0,129.12,129.11,0.0001]
[1742214694305,20.0,129.12,129.07,8.166e-05]
[1742214694514,20.0,129.1,129.07,8.166e-05]
[1742214694714,204.8,129.09,129.03,0.14216157]
[1742214694916,204.8,129.09,129.02,0.28432314]
[1742214695835,8.1344,129.08,129.02,19.07613357]
[1742214696216,8.1344,129.08,129.02,18.933972]
[1742214696708,8.1344,129.08,129.04,0.14216157]
[1742214697026,8.1344,129.08,129.04,0.28432314]
[1742214697424,2.3241,129.08,129.04,0.28432314]
[1742214697931,204.8,129.09,129.05,19.07613357]
[1742214698232,204.8,129.09,129.08,39.07613357]
[1742214698823,181.03,129.09,129.08,39.07613357]
[1742214699345,183.3539,129.09,129.08,39.07613357]